bitfinex/quotes_BTCUSD_20251010
["timestamp","ask_amount","ask_price","bid_price","bid_amount"]
[1760102965754,0.29702,122130.0,122120.0,0.48377838]
[1760102965973,0.29702,122130.0,122120.0,0.25105838]
[1760102966197,0.29702,122130.0,122120.0,0.85569341]
[1760102966624,0.27285,122130.0,122120.0,1.30760524]
[1760102967073,0.29702,122130.0,122120.0,1.22760844]
[1760102967495,0.29702,122130.0,122120.0,0.85569341]
[1760102967711,0.2574,122130.0,122120.0,0.99488844]
[1760102967923,0.27285,122130.0,122120.0,0.25105838]
[1760102968142,0.29702,122130.0,122120.0,0.48377838]
[1760102968365,0.29702,122130.0,122120.0,0.85569341]
[1760102969676,0.29702,122130.0,122120.0,0.48377838]
[1760102970345,0.46077992,122130.0,122120.0,0.25105838]
[1760102970563,0.46077992,122130.0,122120.0,0.48389838]
[1760102971069,0.29702,122130.0,122120.0,0.48389838]
[1760102971291,0.46077992,122130.0,122120.0,0.48389838]
[1760102971503,0.29702,122130.0,122120.0,0.48389838]
[1760102971717,0.29702,122130.0,122120.0,0.48385838]
[1760102972580,0.46077992,122130.0,122120.0,0.48385838]
[1760102972815,0.46077992,122130.0,122120.0,0.25105838]
[1760102973262,0.46077992,122130.0,122120.0,0.08728505]
[1760102973478,0.46077992,122130.0,122120.0,0.48381838]
[1760102975001,0.46077992,122130.0,122120.0,0.48377838]
[1760102976105,0.46077992,122130.0,122120.0,0.08728505]
[1760102976317,0.95688732,122130.0,122120.0,0.32000505]
[1760102976549,0.46077992,122130.0,122120.0,0.08728505]
[1760102976752,0.46077992,122130.0,122120.0,0.48377838]
[1760102976963,0.46077992,122130.0,122120.0,0.31900505]
[1760102977169,0.46077992,122130.0,122120.0,0.25005838]
[1760102977381,0.46077992,122130.0,122120.0,0.48377838]
[1760102978471,0.46077992,122130.0,122120.0,0.48277838]
[1760102978925,0.46077992,122130.0,122120.0,0.25105838]
[1760102979138,0.29702,122130.0,122120.0,0.48373838]
[1760102979750,0.46077992,122130.0,122120.0,0.48373838]
[1760102980175,0.29702,122130.0,122120.0,0.48373838]
[1760102980587,0.46077992,122130.0,122120.0,0.48373838]
[1760102980996,0.29702,122130.0,122120.0,0.48373838]
[1760102981243,0.29702,122130.0,122120.0,0.25105838]
[1760102981429,0.29702,122130.0,122120.0,0.48369838]
[1760102990993,0.24553,122130.0,122120.0,0.74716578]
[1760102991229,0.24553,122130.0,122120.0,1.58327318]
[1760102991445,0.24553,122130.0,122120.0,0.59105838]
[1760102991665,0.24553,122130.0,122120.0,0.89926289]
[1760102991882,0.24553,122130.0,122120.0,1.39437029]
[1760102992090,0.24553,122130.0,122120.0,1.40412578]
[1760102992294,0.26082,122130.0,122120.0,1.17240578]
[1760102992506,0.24553,122130.0,122120.0,1.40508578]
[1760102992731,0.24553,122130.0,122120.0,0.90697838]
[1760102992948,0.24553,122130.0,122120.0,1.17040578]
[1760102993159,0.24553,122130.0,122120.0,1.46906325]
[1760102994056,0.26082,122130.0,122120.0,0.74027585]
[1760102994285,0.26082,122130.0,122120.0,1.15114325]
[1760102994507,0.26082,122130.0,122120.0,1.46906325]
[1760102994953,0.26082,122130.0,122120.0,1.15114325]
[1760102995167,0.29675,122130.0,122120.0,0.59305838]
[1760102995419,0.29675,122130.0,122120.0,0.82569838]
[1760102995927,0.29675,122130.0,122120.0,0.82169838]
[1760102996158,0.29675,122130.0,122120.0,1.31780578]
[1760102996395,0.27298,122130.0,122120.0,1.32080578]
[1760102996893,0.27298,122130.0,122120.0,1.31880578]
[1760102997561,0.27298,122130.0,122120.0,1.31980578]
[1760102998224,0.27298,122130.0,122120.0,1.08716578]
[1760102998433,0.27298,122130.0,122120.0,1.31980578]
[1760102998653,0.27298,122130.0,122120.0,1.34779731]
[1760102999083,0.24553,122130.0,122120.0,1.11515731]
[1760102999294,0.24553,122130.0,122120.0,1.34779731]
[1760102999724,0.24553,122130.0,122120.0,1.34775731]
[1760102999935,0.24553,122130.0,122120.0,1.34675731]
[1760103000381,0.24553,122130.0,122120.0,0.61904991]
[1760103000608,0.26082,122130.0,122120.0,0.59205838]
[1760103000853,0.24553,122130.0,122120.0,1.08816578]
[1760103001098,0.24553,122130.0,122120.0,1.58427318]
[1760103001592,0.01169,122160.0,122150.0,0.65984051]
[1760103001831,0.01169,122160.0,122150.0,0.47957517]
[1760103002044,0.27257,122160.0,122150.0,0.47957517]
[1760103002261,0.27257,122160.0,122150.0,1.01999277]
[1760103002485,0.27257,122160.0,122150.0,1.01995277]
[1760103002742,0.29634,122160.0,122150.0,0.52384537]
[1760103003129,0.95616711,122160.0,122150.0,0.08312206]
[1760103003330,0.95616711,122160.0,122150.0,0.08512206]
[1760103003941,0.95616711,122160.0,122150.0,0.31820206]
[1760103004150,0.95616711,122160.0,122150.0,0.31816206]
[1760103004378,0.95616711,122160.0,122150.0,0.08512206]
[1760103004598,0.95616711,122160.0,122150.0,0.31816206]
[1760103004876,0.95616711,122160.0,122150.0,0.08512206]
[1760103005105,0.95616711,122160.0,122150.0,0.48189517]
[1760103005339,0.46005971,122160.0,122150.0,0.31816206]
[1760103005612,0.29634,122160.0,122150.0,0.24885517]
[1760103005837,0.95616711,122160.0,122150.0,0.31816206]
[1760103006066,0.95616711,122160.0,122150.0,0.002]
[1760103006831,0.7924474,122160.0,122150.0,0.16573311]
[1760103007096,0.27257,122160.0,122150.0,0.74396257]
[1760103007336,0.24559,122160.0,122150.0,1.06187239]
[1760103007590,0.29761,122160.0,122150.0,0.48056499]
[1760103007854,0.29761,122160.0,122150.0,0.33260499]
[1760103008103,0.29761,122160.0,122150.0,0.24736499]
[1760103008321,0.29761,122160.0,122150.0,0.08363188]
[1760103008530,0.29761,122160.0,122150.0,0.48076499]
[1760103008746,0.29761,122160.0,122150.0,0.24836499]
[1760103008957,0.29761,122160.0,122150.0,0.48176499]
[1760103009149,0.46132971,122160.0,122150.0,0.08463188]
[1760103009547,0.95743711,122160.0,122150.0,0.31699188]
[1760103009709,0.95743711,122160.0,122150.0,0.31899188]
[1760103009917,0.95743711,122160.0,122150.0,0.00250982]
[1760103010138,0.95743711,122160.0,122150.0,0.23590982]
[1760103010357,0.95743711,122160.0,122150.0,0.00250982]
[1760103010581,1.29743711,122160.0,122150.0,0.00250982]
[1760103011272,1.32758901,122160.0,122150.0,0.00250982]
[1760103011503,1.56098901,122160.0,122150.0,0.00250982]
[1760103011726,1.32758901,122160.0,122150.0,0.00150982]
[1760103011945,1.56098901,122160.0,122150.0,0.00150982]
[1760103012155,1.32758901,122160.0,122150.0,0.00250982]
[1760103012376,1.06484161,122160.0,122150.0,0.00250982]
[1760103012589,1.82369641,122160.0,122150.0,0.00150982]
[1760103012802,2.05709641,122160.0,122150.0,0.00150982]
[1760103013019,2.20681847,122160.0,122150.0,0.00150982]
[1760103013262,2.44021847,122160.0,122150.0,0.00150982]
[1760103013511,2.44021847,122160.0,122150.0,0.00050982]
[1760103013754,2.20681847,122160.0,122150.0,0.00050982]
[1760103014248,0.83148161,122160.0,122150.0,0.00050982]
[1760103014492,1.56094901,122160.0,122150.0,0.00050982]
[1760103014736,1.82369641,122160.0,122150.0,0.00050982]
[1760103015223,2.05709641,122160.0,122150.0,0.00050982]
[1760103015992,1.82369641,122160.0,122150.0,0.00150982]
[1760103016220,2.05709641,122160.0,122150.0,0.00150982]
[1760103016458,1.82369641,122160.0,122150.0,0.00150982]
[1760103016701,2.05709641,122160.0,122150.0,0.00150982]
[1760103016963,1.82369641,122160.0,122150.0,0.00150982]
[1760103017165,2.05705641,122160.0,122150.0,0.00150982]
[1760103017441,1.82369641,122160.0,122150.0,0.00150982]
[1760103017677,2.05705641,122160.0,122150.0,0.00150982]
[1760103018137,1.82369641,122160.0,122150.0,0.00150982]
[1760103018351,1.93648048,122160.0,122150.0,0.00150982]
[1760103018589,2.14025847,122160.0,122150.0,0.00150982]
[1760103019252,1.90681847,122160.0,122150.0,0.00150982]
[1760103019469,2.14025847,122160.0,122150.0,0.00150982]
[1760103019700,1.90681847,122160.0,122150.0,0.00050982]
[1760103019923,2.52545847,122160.0,122150.0,0.00050982]
[1760103020143,2.52549847,122160.0,122150.0,0.00050982]
[1760103020357,2.29205847,122160.0,122150.0,0.00050982]
[1760103020802,0.01194977,122150.0,122120.0,0.0001232]
[1760103021059,0.17609992,122130.0,122120.0,0.0001232]
[1760103021276,0.93432732,122130.0,122120.0,0.0001232]
[1760103021499,0.95747732,122130.0,122120.0,0.16389653]
[1760103022199,0.29761,122130.0,122120.0,0.28722531]
[1760103022443,0.29761,122130.0,122120.0,0.24701859]
[1760103023362,0.29761,122130.0,122120.0,0.24425547]
[1760103023849,0.29761,122130.0,122120.0,0.24325547]
[1760103024073,0.29761,122130.0,122120.0,0.24425547]
[1760103024288,0.29761,122130.0,122120.0,0.30923059]
[1760103024983,0.29761,122130.0,122120.0,0.24425547]
[1760103025931,0.27446,122130.0,122120.0,0.47873547]
[1760103026188,0.27446,122130.0,122120.0,0.97484287]
[1760103026427,0.27446,122130.0,122120.0,0.47873547]
[1760103026910,0.27446,122130.0,122120.0,0.24325547]
[1760103027145,0.27446,122130.0,122120.0,0.47926537]
[1760103027356,0.27446,122130.0,122120.0,0.48126537]
[1760103027832,0.29761,122130.0,122120.0,0.48126537]
[1760103029689,0.29761,122130.0,122120.0,0.24778537]
[1760103029918,0.29761,122130.0,122120.0,0.48122537]
[1760103032241,0.29761,122130.0,122120.0,0.48118537]
[1760103032480,0.24559,122130.0,122120.0,1.06578338]
[1760103032729,0.24559,122130.0,122120.0,1.7006696]
[1760103032956,0.24559,122130.0,122120.0,1.4918753]
[1760103033221,0.26089,122130.0,122120.0,0.75911729]
[1760103033475,0.27222,122130.0,122120.0,0.69763107]
[1760103033694,0.01234,122150.0,122120.0,0.69763107]
[1760103033695,0.01234,122160.0,122150.0,0.16373311]
[1760103033916,0.02764,122160.0,122150.0,0.63530543]
[1760103034138,0.27323,122160.0,122150.0,0.56057197]
[1760103034354,0.27323,122160.0,122150.0,0.93264892]
[1760103034573,0.27323,122160.0,122150.0,0.56057197]
[1760103034765,0.27323,122160.0,122150.0,0.32685197]
[1760103035047,0.27323,122160.0,122150.0,0.56057197]
[1760103035270,0.27323,122160.0,122150.0,0.69992892]
[1760103035488,0.2972,122160.0,122150.0,0.69992892]
[1760103035918,0.2972,122160.0,122150.0,0.61993212]
[1760103036133,0.27323,122160.0,122150.0,0.48153517]
[1760103036370,0.27323,122160.0,122150.0,0.48253517]
[1760103036586,0.27323,122160.0,122150.0,0.62093212]
[1760103036801,0.2972,122160.0,122150.0,0.62093212]
[1760103037028,0.2972,122160.0,122150.0,0.24885517]
[1760103037245,0.66927695,122160.0,122150.0,0.24885517]
[1760103037475,0.2972,122160.0,122150.0,0.24885517]
[1760103037685,1.20507361,122160.0,122150.0,0.31880206]
[1760103037866,1.20507361,122160.0,122150.0,0.24885517]
[1760103038316,0.2972,122160.0,122150.0,0.48257517]
[1760103038521,1.0413539,122160.0,122150.0,0.48257517]
[1760103038727,1.20507361,122160.0,122150.0,0.24885517]
[1760103039181,1.20507361,122160.0,122150.0,0.48253517]
[1760103039393,0.46091971,122160.0,122150.0,0.48253517]
[1760103039599,0.2972,122160.0,122150.0,0.48253517]
[1760103039810,0.46091971,122160.0,122150.0,0.24885517]
[1760103040250,0.46091971,122160.0,122150.0,0.08512206]
[1760103040492,0.46091971,122160.0,122150.0,0.48249517]
[1760103041161,0.46091971,122160.0,122150.0,0.31876206]
[1760103041401,0.46091971,122160.0,122150.0,0.48249517]
[1760103041604,0.46091971,122160.0,122150.0,0.31876206]
[1760103042031,0.46091971,122160.0,122150.0,0.48249517]
[1760103042255,0.8255952,122160.0,122150.0,0.24885517]
[1760103042485,1.32931491,122160.0,122150.0,0.002]
[1760103042930,1.56295491,122160.0,122150.0,0.002]
[1760103043419,1.32931491,122160.0,122140.0,0.16425582]
[1760103043638,0.72742831,122150.0,122140.0,0.31723194]
[1760103043883,0.97301831,122150.0,122140.0,0.24737846]
[1760103044120,0.98831831,122150.0,122140.0,0.24737846]
[1760103044369,0.98831831,122150.0,122140.0,0.08363194]
[1760103045115,1.88686541,122150.0,122140.0,0.00050988]
[1760103045371,1.59207021,122150.0,122140.0,0.00050988]
[1760103045858,1.35847021,122150.0,122140.0,0.00150988]
[1760103046094,2.26998747,122150.0,122140.0,0.00150988]
[1760103046329,2.50366747,122150.0,122140.0,0.00150988]
[1760103046619,2.26998747,122150.0,122140.0,0.00050988]
[1760103046871,2.50366747,122150.0,122140.0,0.00150988]
[1760103047095,2.29498746,122150.0,122140.0,0.00150988]
[1760103047314,0.16380016,122100.0,122090.0,0.06619503]
[1760103047536,0.97926726,122100.0,122090.0,0.0666972]
[1760103047782,1.35935726,122100.0,122090.0,0.0666972]
[1760103048015,1.35935726,122100.0,122090.0,0.00050217]
[1760103048255,0.16382699,122080.0,122050.0,0.00428016]
[1760103048474,0.70461904,122060.0,122050.0,0.15374772]
[1760103048687,0.96536904,122060.0,122050.0,0.15374772]
[1760103048900,1.22437904,122060.0,122050.0,0.07062566]
[1760103049334,1.22437904,122060.0,122050.0,0.00443063]
[1760103049559,0.29805,122060.0,122050.0,0.16829789]
[1760103049780,0.29805,122060.0,122050.0,0.2846778]
[1760103049997,0.53217,122060.0,122050.0,0.2846778]
[1760103050428,0.29805,122060.0,122050.0,0.25141995]
[1760103050650,0.29805,122060.0,122050.0,0.25241995]
[1760103050866,0.29805,122060.0,122050.0,0.25341995]
[1760103051535,0.53217,122060.0,122050.0,0.25341995]
[1760103051825,0.46190384,122060.0,122050.0,0.25341995]
[1760103052067,0.29805,122060.0,122050.0,0.25341995]
[1760103052306,0.53217,122060.0,122050.0,0.25341995]
[1760103052754,0.29805,122060.0,122050.0,0.25341995]
[1760103053028,0.53213,122060.0,122050.0,0.25341995]
[1760103053268,0.46190384,122060.0,122050.0,0.08955269]
[1760103053491,0.46190384,122060.0,122050.0,0.09414522]
[1760103053492,0.99029904,122060.0,122050.0,0.09414522]
[1760103053925,0.99029904,122060.0,122050.0,0.01102316]
[1760103054181,1.22437904,122060.0,122050.0,0.01102316]
[1760103054422,0.99029904,122060.0,122050.0,0.006743]
[1760103054687,0.69602384,122060.0,122050.0,0.006743]
[1760103054896,0.99029904,122060.0,122050.0,0.006743]
[1760103055346,1.22437904,122060.0,122050.0,0.006743]
[1760103055997,0.99029904,122060.0,122050.0,0.006743]
[1760103056425,1.22437904,122060.0,122050.0,0.006743]
[1760103056662,0.99029904,122060.0,122050.0,0.006743]
[1760103056883,2.12288614,122060.0,122050.0,0.006743]
[1760103057105,1.36045094,122060.0,122050.0,0.006743]
[1760103057322,2.12300614,122060.0,122050.0,0.006743]
[1760103057537,1.9719682,122060.0,122050.0,0.006743]
[1760103057785,1.59080956,122050.0,122040.0,0.0004]
[1760103058012,1.93404956,122050.0,122040.0,0.00055047]
[1760103058273,2.33233162,122050.0,122040.0,0.00055047]
[1760103058515,2.59146162,122050.0,122040.0,0.00055047]
[1760103058976,2.61926817,122050.0,122040.0,0.00055047]
[1760103059218,2.59146162,122050.0,122040.0,0.00055047]
[1760103059442,2.59142162,122050.0,122040.0,0.00055047]
[1760103059674,2.35726162,122050.0,122040.0,0.00055047]
[1760103059903,2.59142162,122050.0,122040.0,0.00055047]
[1760103060374,1.45150916,122050.0,122040.0,0.00055047]
[1760103060608,1.45150916,122050.0,122040.0,0.16443116]
[1760103060609,1.2517252,122050.0,122040.0,0.16443116]
[1760103060856,0.29805,122050.0,122040.0,0.16443116]
[1760103061113,0.29805,122050.0,122040.0,0.28038558]
[1760103061114,0.53233,122050.0,122040.0,0.28038558]
[1760103061324,0.29805,122050.0,122040.0,0.24755322]
[1760103062046,0.27312,122050.0,122040.0,0.77594842]
[1760103062259,0.27312,122050.0,122040.0,0.48187322]
[1760103062516,0.24559,122050.0,122040.0,0.48191322]
[1760103062757,0.24559,122050.0,122040.0,1.09034522]
[1760103063000,0.24559,122050.0,122040.0,0.85594522]
[1760103063245,0.24559,122050.0,122040.0,1.51658522]
[1760103063714,0.24559,122050.0,122040.0,1.51609574]
[1760103063976,0.24559,122050.0,122040.0,1.28273574]
[1760103064236,0.24559,122050.0,122040.0,1.51813574]
[1760103064476,0.24559,122050.0,122040.0,1.28273574]
[1760103064704,0.0013653,122070.0,122060.0,1.03224904]
[1760103064921,0.0013653,122070.0,122060.0,1.4297679]
[1760103065141,0.2748353,122070.0,122060.0,0.9013727]
[1760103065595,0.2748353,122070.0,122060.0,0.6669727]
[1760103066032,0.2471353,122070.0,122060.0,1.4298879]
[1760103066975,0.2471353,122070.0,122060.0,0.6679727]
[1760103067193,0.2748353,122070.0,122060.0,0.5879759]
[1760103067629,0.2748353,122070.0,122060.0,0.4828159]
[1760103067848,0.8261305,122070.0,122060.0,0.08512206]
[1760103068066,0.98997091,122070.0,122060.0,0.08512206]
[1760103069181,0.98997091,122070.0,122060.0,0.001]
[1760103069664,0.16386034,122060.0,122040.0,0.20205545]
[1760103069887,0.94941554,122060.0,122050.0,0.08312206]
[1760103070104,0.96572554,122060.0,122050.0,0.08312206]
[1760103070316,0.43733034,122060.0,122050.0,0.08312206]
[1760103070538,0.98862554,122060.0,122050.0,0.08312206]
[1760103070759,0.98862554,122060.0,122040.0,0.00106099]
[1760103070760,0.16386726,122050.0,122040.0,0.00106099]
[1760103070984,0.70365246,122050.0,122040.0,0.08518305]
[1760103071204,0.98863246,122050.0,122040.0,0.00206099]
[1760103071420,1.22363246,122050.0,122040.0,0.00106099]
[1760103071643,0.98863246,122050.0,122040.0,0.00106099]
[1760103071874,1.22363246,122050.0,122040.0,0.00106099]
[1760103072084,0.98863246,122050.0,122040.0,0.00106099]
[1760103072545,1.22363246,122050.0,122040.0,0.16494168]
[1760103073016,0.98863246,122050.0,122040.0,0.00106099]
[1760103073512,0.98863246,122050.0,122040.0,0.16494168]
[1760103073746,0.29637,122050.0,122040.0,0.28094712]
[1760103073975,0.27347,122050.0,122040.0,0.28094712]
[1760103074207,0.27347,122050.0,122040.0,0.28194712]
[1760103074432,0.27347,122050.0,122040.0,0.51702712]
[1760103074664,0.29637,122050.0,122040.0,0.24906374]
[1760103075125,0.27347,122050.0,122040.0,0.48414374]
[1760103075346,0.27347,122050.0,122040.0,0.24906374]
[1760103075542,0.29637,122050.0,122040.0,0.24906374]
[1760103075796,0.46023726,122050.0,122040.0,0.08518305]
[1760103076019,0.98863246,122050.0,122040.0,0.24906374]
[1760103076258,0.29637,122050.0,122040.0,0.24906374]
[1760103076489,0.98863246,122050.0,122040.0,0.24906374]
[1760103076719,0.8247652,122050.0,122040.0,0.25006374]
[1760103076963,0.29637,122050.0,122040.0,0.26335751]
[1760103077610,0.29637,122050.0,122040.0,0.25006374]
[1760103077825,0.29637,122050.0,122040.0,0.48518374]
[1760103078287,0.29637,122050.0,122040.0,0.25006374]
[1760103078759,0.46023726,122050.0,122040.0,0.48514374]
[1760103079262,0.29637,122050.0,122040.0,0.25006374]
[1760103079464,0.29637,122050.0,122040.0,0.48510374]
[1760103079698,0.29637,122050.0,122040.0,0.25006374]
[1760103079936,0.27347,122050.0,122040.0,0.55000332]
[1760103080137,0.27347,122050.0,122040.0,0.31496332]
[1760103080367,0.29637,122050.0,122040.0,0.25006374]
[1760103080604,0.29637,122050.0,122040.0,0.48506374]
[1760103081301,0.27347,122050.0,122040.0,0.25006374]
[1760103081530,0.27347,122050.0,122040.0,0.48506374]
[1760103082225,0.29637,122050.0,122040.0,0.48502374]
[1760103082712,0.29637,122050.0,122040.0,0.25006374]
[1760103082904,0.29637,122050.0,122040.0,0.48498374]
[1760103083329,0.29637,122050.0,122040.0,0.25006374]
[1760103083556,0.24577,122050.0,122040.0,0.85187452]
[1760103083771,0.0013653,122070.0,122060.0,0.16385384]
[1760103083985,0.0176753,122070.0,122060.0,0.49832128]
[1760103084199,0.0013653,122070.0,122060.0,0.5672159]
[1760103084465,0.0013653,122070.0,122060.0,0.6471727]
[1760103084939,0.0290653,122070.0,122060.0,0.6471727]
[1760103085206,0.0290653,122070.0,122060.0,0.4122527]
[1760103085429,0.0013653,122070.0,122060.0,1.1755679]
[1760103085643,0.0013653,122070.0,122060.0,1.1765679]
[1760103085895,0.0013653,122070.0,122060.0,0.9416479]
[1760103086320,0.0013653,122070.0,122060.0,1.1765279]
[1760103086536,0.0013653,122070.0,122060.0,1.5165279]
[1760103086744,0.0013653,122070.0,122060.0,1.52483658]
[1760103086962,0.0013653,122070.0,122060.0,1.5165279]
[1760103087191,0.0013653,122070.0,122060.0,1.2816479]
[1760103087392,0.0013653,122070.0,122060.0,1.2826479]
[1760103087833,0.0013653,122070.0,122060.0,1.5175279]
[1760103088482,0.01139,122100.0,122090.0,0.16381358]
[1760103088688,0.01139,122100.0,122090.0,0.57815379]
[1760103088916,0.0277,122100.0,122090.0,0.32693244]
[1760103089133,0.05213061,122100.0,122090.0,0.32693244]
[1760103089350,0.05213061,122100.0,122090.0,0.56177244]
[1760103089791,0.05263176,122100.0,122090.0,0.56177244]
[1760103090015,0.74482712,122100.0,122090.0,0.31792206]
[1760103090238,0.99053712,122100.0,122090.0,0.48177564]
[1760103090451,0.99053712,122100.0,122090.0,0.31796206]
[1760103090684,0.29834176,122100.0,122090.0,0.24693564]
[1760103090905,0.27544176,122100.0,122090.0,0.24693564]
[1760103091131,0.27544176,122100.0,122090.0,1.09124764]
[1760103091350,0.27544176,122100.0,122090.0,0.85632764]
[1760103091593,0.27544176,122100.0,122090.0,0.56289244]
[1760103092045,0.27544176,122100.0,122090.0,0.56285244]
[1760103092566,0.29834176,122100.0,122090.0,0.32793244]
[1760103092788,0.29834176,122100.0,122090.0,0.56813564]
[1760103093018,0.29834176,122100.0,122090.0,0.33321564]
[1760103093212,0.29834176,122100.0,122090.0,0.56809564]
[1760103093429,0.27544176,122100.0,122090.0,0.33321564]
[1760103093655,0.24774176,122100.0,122090.0,1.49381127]
[1760103093870,1e-08,122100.0,122090.0,1.40853127]
[1760103094090,1e-08,122100.0,122090.0,1.49381127]
[1760103094308,1e-08,122100.0,122090.0,1.72773127]
[1760103094519,1e-08,122100.0,122090.0,1.49281127]
[1760103094735,1e-08,122100.0,122090.0,1.72773127]
[1760103095167,1e-08,122100.0,122090.0,1.72873127]
[1760103095393,1e-08,122100.0,122090.0,1.83693127]
[1760103095785,1e-08,122100.0,122090.0,2.13355545]
[1760103096404,1e-08,122100.0,122090.0,2.13351545]
[1760103096978,1e-08,122100.0,122090.0,0.73155662]
[1760103097222,1e-08,122100.0,122090.0,2.13347545]
[1760103097544,1e-08,122100.0,122090.0,1.47015545]
[1760103097853,1e-08,122100.0,122090.0,2.13351545]
[1760103098131,1e-08,122100.0,122090.0,2.13347545]
[1760103098278,1e-08,122100.0,122090.0,2.13147545]
[1760103098476,1e-08,122100.0,122090.0,2.13047545]
[1760103098696,1e-08,122100.0,122090.0,1.89747545]
[1760103098920,1e-08,122100.0,122090.0,2.13343545]
[1760103099165,1e-08,122100.0,122090.0,2.13243545]
[1760103099716,1e-08,122100.0,122090.0,2.13439545]
[1760103100154,0.01576001,122100.0,122090.0,1.15883662]
[1760103100366,1e-08,122100.0,122090.0,1.39375662]
[1760103100782,1e-08,122100.0,122090.0,1.15883662]
[1760103101214,1e-08,122100.0,122090.0,1.89943545]
[1760103101423,1e-08,122100.0,122090.0,2.13467545]
[1760103101639,1e-08,122100.0,122090.0,0.25093564]
[1760103101640,0.05159001,122100.0,122090.0,0.25093564]
[1760103101861,0.05159001,122100.0,122090.0,0.48625564]
[1760103102081,0.05159001,122100.0,122090.0,0.25093564]
[1760103102298,0.02708001,122100.0,122090.0,0.25093564]
[1760103102521,1e-08,122100.0,122090.0,1.64709127]
[1760103102736,1e-08,122100.0,122090.0,1.41153127]
[1760103102960,1e-08,122100.0,122090.0,1.40953127]
[1760103103171,1e-08,122100.0,122090.0,1.64617127]
[1760103103380,1e-08,122100.0,122090.0,1.64417127]
[1760103103608,1e-08,122100.0,122090.0,0.66693244]
[1760103103820,1e-08,122100.0,122090.0,0.90553244]
[1760103104258,1e-08,122100.0,122090.0,0.66793244]
[1760103104468,1e-08,122100.0,122090.0,1.64413127]
[1760103104681,1e-08,122100.0,122090.0,1.41053127]
[1760103104939,1e-08,122100.0,122090.0,1.64609127]
[1760103105159,1e-08,122100.0,122090.0,1.64509127]
[1760103105537,1e-08,122100.0,122090.0,1.64609127]
[1760103105674,1e-08,122100.0,122090.0,1.41053127]
[1760103105886,1e-08,122100.0,122090.0,1.64609127]
[1760103106528,1e-08,122100.0,122090.0,1.41053127]
[1760103106735,1e-08,122100.0,122090.0,1.64605127]
[1760103106941,1e-08,122100.0,122090.0,1.41053127]
[1760103107141,1e-08,122100.0,122090.0,1.67620317]
[1760103107352,1e-08,122100.0,122090.0,1.67420317]
[1760103107577,1e-08,122100.0,122090.0,1.67620317]
[1760103108204,1e-08,122100.0,122090.0,1.44068317]
[1760103108403,1e-08,122100.0,122090.0,1.43968317]
[1760103108620,0.01132,122150.0,122140.0,0.16374652]
[1760103108826,0.03465027,122150.0,122140.0,0.56770858]
[1760103109031,0.05013027,122150.0,122140.0,0.56770858]
[1760103109236,0.05013027,122150.0,122140.0,0.33210858]
[1760103109453,0.05013027,122150.0,122140.0,0.56770858]
[1760103109657,0.05013027,122150.0,122140.0,0.24686858]
[1760103109860,0.05013027,122150.0,122140.0,0.40404206]
[1760103110073,0.21386338,122150.0,122140.0,0.33210858]
[1760103110283,0.05013027,122150.0,122140.0,0.33210858]
[1760103110760,0.05013027,122150.0,122140.0,0.56782858]
[1760103110967,0.05013027,122150.0,122140.0,0.33310858]
[1760103111218,0.21386338,122150.0,122140.0,0.08412206]
[1760103111435,0.21386338,122150.0,122140.0,0.31980206]
[1760103111651,0.95446221,122150.0,122140.0,0.08412206]
[1760103111871,0.95446221,122150.0,122140.0,0.31976206]
[1760103112094,0.21386338,122150.0,122140.0,0.08412206]
[1760103112308,0.21386338,122150.0,122140.0,0.31976206]
[1760103113189,0.21386338,122150.0,122140.0,0.08412206]
[1760103113411,0.05013027,122150.0,122140.0,0.48346858]
[1760103113626,0.21386338,122150.0,122140.0,0.48346858]
[1760103113855,0.95446221,122150.0,122140.0,0.001]
[1760103114074,0.21386338,122150.0,122140.0,0.001]
[1760103114288,0.21641304,122150.0,122140.0,0.001]
[1760103114742,1.20262187,122150.0,122140.0,0.001]
[1760103115636,2.19377377,122150.0,122140.0,0.001]
[1760103115855,2.13626459,122150.0,122140.0,0.001]
[1760103116073,2.19393377,122150.0,122140.0,0.001]
[1760103116290,2.10877377,122150.0,122140.0,0.001]
[1760103116741,1.80877377,122150.0,122140.0,0.001]
[1760103116956,1.57277377,122150.0,122140.0,0.001]
[1760103117181,0.16377333,122120.0,122110.0,0.40621102]
[1760103117398,0.16377333,122120.0,122110.0,0.31735709]
[1760103117399,0.42175333,122120.0,122110.0,0.31735709]
[1760103117614,0.46143345,122120.0,122110.0,0.54906383]
[1760103117870,1.20203228,122120.0,122110.0,0.08312206]
[1760103118756,1.21022094,122120.0,122090.0,0.23000502]
[1760103118974,0.03555,122110.0,122100.0,0.24692222]
[1760103119209,0.29664,122110.0,122100.0,0.24692222]
[1760103119887,0.46042674,122110.0,122100.0,0.48288222]
[1760103120319,0.29664,122110.0,122100.0,0.48288222]
[1760103120549,0.46042674,122110.0,122100.0,0.48288222]
[1760103120766,0.29664,122110.0,122100.0,0.24692222]
[1760103120979,0.27346,122110.0,122100.0,0.2919474]
[1760103121425,0.29664,122110.0,122100.0,0.5278674]
[1760103121643,0.46042674,122110.0,122100.0,0.48280222]
[1760103121854,0.46042674,122110.0,122100.0,0.48380222]
[1760103122071,0.29664,122110.0,122100.0,0.48380222]
[1760103122769,0.29664,122110.0,122100.0,0.48480222]
[1760103123040,0.46042674,122110.0,122100.0,0.24892222]
[1760103123262,0.46042674,122110.0,122100.0,0.32104206]
[1760103123473,0.46042674,122110.0,122100.0,0.48484222]
[1760103123909,0.46042674,122110.0,122100.0,0.24892222]
[1760103124394,1.20153567,122110.0,122100.0,0.32092206]
[1760103124612,0.46093684,122110.0,122100.0,0.32092206]
[1760103125381,0.16381358,122090.0,122080.0,0.00136495]
[1760103125610,1.16161241,122090.0,122080.0,0.0018661]
[1760103125882,1.18574702,122090.0,122080.0,0.0018661]
[1760103126126,1.54880702,122090.0,122080.0,0.0018661]
[1760103126892,1.54880702,122090.0,122080.0,0.0028661]
[1760103127111,1.78468702,122090.0,122080.0,0.0028661]
[1760103128472,1.78464702,122090.0,122080.0,0.0028661]
[1760103128714,1.6316835,122090.0,122080.0,0.0038661]
[1760103128951,1.84236974,122090.0,122080.0,0.0038661]
[1760103129184,2.41479892,122090.0,122080.0,0.0038661]
[1760103130115,2.49999892,122090.0,122080.0,0.0028661]
[1760103131044,2.49999892,122090.0,122080.0,0.0018661]
[1760103131046,2.58312098,122090.0,122080.0,0.0018661]
[1760103131287,2.26208098,122090.0,122080.0,0.0018661]
[1760103131528,2.17895892,122090.0,122080.0,0.0018661]
[1760103131759,1.66419892,122090.0,122080.0,0.0018661]
[1760103131989,1.89999892,122090.0,122080.0,0.0018661]
[1760103132216,1.90007892,122090.0,122080.0,0.0018661]
[1760103133299,1.57895892,122090.0,122080.0,0.0018661]
[1760103133751,1.90003892,122090.0,122080.0,0.0018661]